bitfinex/quotes_ETHUSD_20220310
["timestamp","ask_amount","ask_price","bid_price","bid_amount"]
[1646945606313,0.70569837,2618.4,2617.9,0.07266243]
[1646945606510,0.94843559,2618.3,2617.9,0.07266243]
[1646945606811,0.36573019,2618.2,2617.8,0.0721978]
[1646945607012,0.36573019,2618.2,2617.9,1.19445722]
[1646945609513,0.36573019,2618.2,2617.8,0.0721978]
[1646945610163,0.36573019,2618.2,2617.9,1.19437223]
[1646945610363,0.70569837,2618.5,2618.1,0.02457397]
[1646945610564,0.36468088,2618.4,2618.1,0.02457397]
[1646945610762,0.36468088,2618.3,2618.1,0.02457397]
[1646945610962,0.36468088,2618.2,2618.1,0.02457397]
[1646945611163,1.03212699,2618.3,2618.1,0.02457397]
[1646945611362,1.72081827,2618.6,2618.1,0.02457397]
[1646945611363,0.36468088,2618.2,2618.1,0.02457397]
[1646945611564,0.36468088,2618.5,2618.1,0.02457397]
[1646945612166,1.07037925,2618.5,2618.1,0.02457397]
[1646945612369,1.2229011,2618.3,2618.1,0.02457397]
[1646945612565,0.36468088,2618.2,2618.1,0.02457397]
[1646945614410,0.36468088,2618.5,2618.1,0.02457397]
[1646945614610,0.36468088,2618.4,2618.1,0.02457397]
[1646945614814,0.36468088,2618.3,2618.2,0.04674213]
[1646945615618,0.42717237,2618.3,2618.2,0.04674213]
[1646945616018,1.13287074,2618.3,2618.2,0.04674213]
[1646945616219,0.36468088,2618.3,2618.2,0.04674213]
[1646945616619,1.07037925,2618.3,2618.2,0.04674213]
[1646945616819,0.36468088,2618.3,2618.2,0.04674213]
[1646945619659,0.70569837,2618.5,2618.2,0.04674213]
[1646945620267,1.83971675,2618.5,2618.2,0.04674213]
[1646945620463,0.36468088,2618.4,2618.2,0.07095393]
[1646945621409,0.95545,2618.6,2618.2,0.07095393]
[1646945621410,0.36468088,2618.3,2618.2,0.07095393]
[1646945621810,0.36468088,2618.5,2618.2,0.07095393]
[1646945622010,0.36468088,2618.4,2618.2,0.07095393]
[1646945622211,1.66114837,2618.6,2618.2,0.07095393]
[1646945622212,0.36468088,2618.3,2618.2,0.07095393]
[1646945622411,0.93187472,2618.4,2618.2,0.07095393]
[1646945622610,0.36468088,2618.3,2618.2,0.07095393]
[1646945623411,0.36468088,2618.3,2618.2,1.2647795]
[1646945623612,0.36468088,2618.3,2618.2,0.07095393]
[1646945626468,0.36468088,2618.3,2618.2,1.26502084]
[1646945626669,0.36468088,2618.3,2618.2,0.07095393]
[1646945626868,0.51829454,2618.0,2617.7,0.00409604]
[1646945627068,0.36468088,2617.9,2617.7,0.00409604]
[1646945627467,0.36468088,2617.9,2617.7,1.19554523]
[1646945627667,0.36468088,2617.9,2617.7,1.19964101]
[1646945628511,0.36468088,2617.9,2617.8,1.19554523]
[1646945628711,0.36468088,2617.9,2617.6,1.19554523]
[1646945628909,0.36468088,2617.9,2617.7,1.19964101]
[1646945629109,0.36468088,2617.9,2617.7,0.00409578]
[1646945629311,0.36468088,2617.9,2617.7,1.19964101]
[1646945629913,0.36468088,2617.9,2617.8,1.19554523]
[1646945630313,0.36468088,2617.9,2617.7,0.00409578]
[1646945630514,0.36468088,2617.9,2617.7,1.19964101]
[1646945630719,1.312951,2617.9,2617.7,1.19964101]
[1646945630916,1.312951,2617.9,2617.7,0.00409578]
[1646945630917,0.36468088,2617.8,2617.7,0.00409578]
[1646945631215,0.36468088,2617.8,2617.2,1.19596545]
[1646945631418,0.36468088,2617.8,2617.7,0.0040958]
[1646945632356,0.36468088,2617.8,2617.3,1.19596545]
[1646945632556,0.36468088,2617.8,2617.6,0.00409584]
[1646945633559,0.36468088,2617.7,2617.3,1.19596545]
[1646945633757,0.51829454,2618.0,2617.6,0.00409588]
[1646945633960,0.41931019,2617.9,2617.6,0.00409588]
[1646945634159,0.36400619,2617.8,2617.6,0.00409588]
[1646945634558,0.36400619,2617.8,2617.7,0.90634049]
[1646945634963,0.36400619,2617.8,2617.7,2.10230594]
[1646945635763,0.36400619,2617.9,2617.7,2.10230594]
[1646945636011,0.36400619,2617.8,2617.7,0.90634049]
[1646945636212,0.36400619,2617.9,2617.7,2.10336881]
[1646945636413,0.36400619,2617.9,2617.8,1.19702832]
[1646945639673,0.36400619,2617.9,2617.8,4.69702832]
[1646945640170,0.51829454,2618.0,2617.9,0.06610237]
[1646945640366,0.88201159,2618.0,2617.9,5.71653069]
[1646945640770,0.70665837,2618.6,2617.9,6.67184069]
[1646945640967,0.99333503,2618.8,2618.5,1.04053865]
[1646945640968,0.7605744,2618.8,2618.5,1.04053865]
[1646945641172,0.7605744,2618.8,2618.5,1.89963865]
[1646945641173,0.05487603,2618.8,2618.5,1.89963865]
[1646945641568,0.70785238,2618.9,2618.6,3.5]
[1646945641769,0.70569837,2618.9,2618.7,0.95501]
[1646945641967,0.75732386,2619.0,2618.6,0.955069]
[1646945642166,0.00409814,2618.9,2618.6,0.955069]
[1646945642966,0.00409814,2618.9,2618.6,1.910059]
[1646945643166,0.05162549,2619.0,2618.7,0.955]
[1646945643410,0.00409822,2618.9,2618.7,0.955]
[1646945644213,0.05162549,2619.0,2618.7,0.955]
[1646945644415,0.70569837,2619.2,2618.7,5.4798]
[1646945644613,0.05493022,2619.4,2618.7,5.4798]
[1646945644614,0.00409826,2618.9,2618.7,5.4798]
[1646945644813,0.00409826,2618.9,2618.8,3.5]
[1646945645415,0.76062859,2619.4,2618.8,3.5]
[1646945645615,0.05493022,2619.4,2618.9,2.03336593]
[1646945645814,0.05493022,2619.4,2618.9,2.98830593]
[1646945646419,0.05493022,2619.4,2619.3,1.06497253]
[1646945646717,0.4708706,2619.0,2618.9,0.95494]
[1646945646916,0.4708706,2619.0,2618.8,1.9098753]
[1646945647558,0.4708706,2619.0,2618.9,1.13157598]
[1646945649561,0.4708706,2619.0,2618.9,2.08652598]
[1646945650065,0.4708706,2619.0,2618.9,1.13157598]
[1646945650066,0.5859996,2619.0,2618.9,1.13157598]
[1646945650368,0.5859996,2619.0,2618.9,4.63157598]
[1646945650566,0.6620029,2619.0,2618.9,1.13157598]
[1646945651411,0.6620029,2619.0,2618.9,4.63157598]
[1646945651613,0.6620029,2619.0,2618.9,1.13157598]
[1646945652218,0.6620029,2619.0,2618.8,2.8647748]
[1646945652412,0.6620029,2619.0,2618.5,1.21586869]
[1646945652612,0.6620029,2619.0,2618.5,0.07136869]
[1646945653213,0.6620029,2619.0,2618.5,1.29773391]
[1646945654219,0.00246805,2618.9,2618.5,0.07136869]
[1646945654413,0.00246805,2618.9,2618.2,0.07202684]
[1646945654688,0.00246805,2618.9,2618.1,3.5604]
[1646945654689,0.22933607,2618.9,2618.1,3.5604]
[1646945655080,0.22933607,2618.9,2618.2,0.90727613]
[1646945655081,0.22686802,2618.9,2618.2,0.90727613]
[1646945655377,0.22933584,2618.9,2618.8,0.02165567]
[1646945656178,0.22686802,2618.9,2618.8,0.02165567]
[1646945659418,0.22686802,2618.9,2618.8,0.06070487]
[1646945659820,0.93256639,2618.9,2618.8,0.06070487]
[1646945660020,0.88350347,2618.9,2618.8,0.06070487]
[1646945660819,1.22892704,2618.9,2618.8,0.06070487]
[1646945661422,0.52322867,2618.9,2618.8,0.06070487]
[1646945663059,0.52322867,2618.9,2618.8,0.05961033]
[1646945666710,0.52322867,2618.9,2618.8,0.03329748]
[1646945668119,0.0109152,2619.3,2618.8,0.03329748]
[1646945668318,0.0109152,2619.3,2618.8,1.24999748]
[1646945668718,0.00439469,2619.0,2618.8,1.24999748]
[1646945668915,0.00439469,2619.0,2618.9,0.1908]
[1646945669116,0.00439469,2619.0,2618.9,1.24591771]
[1646945669318,0.00439469,2619.0,2618.9,1.05511771]
[1646945669515,0.0109152,2619.3,2618.9,1.05511771]
[1646945669764,0.00246438,2619.1,2618.9,1.05511771]
[1646945670668,0.0109152,2619.3,2618.9,2.01004771]
[1646945670966,0.00246443,2619.1,2618.9,2.01004771]
[1646945671367,0.00246443,2619.1,2618.9,1.05511771]
[1646945671966,0.0109152,2619.3,2618.9,1.05511771]
[1646945672166,0.0109152,2619.3,2618.8,1.01467151]
[1646945672167,0.00471613,2619.1,2618.8,0.05968331]
[1646945673166,0.0615485,2619.2,2618.8,0.05968331]
[1646945673418,0.00471609,2619.1,2618.8,0.05968331]
[1646945673815,1.2277888,2619.0,2618.8,0.05968331]
[1646945674418,3.5579133,2618.9,2618.8,0.05968331]
[1646945674618,3.5579133,2618.9,2618.2,1.2081]
[1646945674619,3.5,2618.9,2618.2,1.2128178]
[1646945674821,1.2277888,2619.0,2618.2,1.2128178]
[1646945675222,1.2277888,2619.0,2618.4,1.13185306]
[1646945675719,0.0118752,2619.3,2618.4,1.13185306]
[1646945675919,0.00471576,2619.1,2618.4,1.13185306]
[1646945676721,0.93551757,2618.9,2618.4,1.13185306]
[1646945677020,0.93551757,2618.9,2618.2,3.18845673]
[1646945677861,0.93551757,2618.9,2618.2,1.27369206]
[1646945678261,0.93551757,2618.9,2618.2,1.27825385]
[1646945678862,0.93551757,2618.9,2618.2,1.21266179]
[1646945679067,0.87379837,2619.2,2618.2,1.2081]
[1646945679266,0.00456008,2619.1,2618.3,0.0699522]
[1646945679465,0.00456008,2619.1,2618.3,0.2607522]
[1646945679866,0.00456008,2619.1,2618.6,0.03457869]
[1646945680272,0.0109152,2619.3,2618.6,0.03457869]
[1646945680273,4.21661357,2619.3,2618.6,0.03457869]
[1646945680468,0.70991654,2619.1,2618.6,0.03457869]
[1646945680673,0.70569837,2618.9,2618.6,0.03457869]
[1646945681111,12.40569837,2618.7,2618.6,0.03457869]
[1646945681309,16.37379837,2618.7,2618.6,0.03457869]
[1646945681709,15.6681,2618.7,2618.6,0.03457869]
[1646945682511,11.7,2618.5,2618.2,0.00421957]
[1646945682712,0.95566,2618.3,2617.6,1.1892]
[1646945682916,0.1681,2618.2,2617.4,0.382]
[1646945683517,5.32886675,2618.3,2617.4,0.382]
[1646945683717,0.8684936,2617.7,2617.4,0.382]
[1646945683918,3.5,2618.2,2617.3,0.07867288]
[1646945684118,6.51966675,2618.3,2617.7,0.00441243]
[1646945684320,5.81456,2618.3,2617.7,0.00441243]
[1646945684770,0.0540365,2618.2,2617.7,0.00441243]
[1646945684972,3.91532321,2618.5,2617.8,1.03408057]
[1646945684973,0.86673814,2618.4,2617.8,1.03408057]
[1646945685372,0.86673814,2618.4,2617.8,1.03849293]
[1646945686373,0.86673814,2618.4,2617.8,1.03408057]
[1646945686573,0.86673814,2618.4,2618.0,0.00441225]
[1646945687072,0.05690518,2618.5,2618.0,0.00441225]
[1646945687575,0.05690518,2618.5,2617.8,1.03408057]
[1646945687775,0.06211177,2618.7,2618.1,0.00440202]
[1646945688174,1.01008768,2618.6,2618.1,0.00440202]
[1646945688408,0.38915996,2618.5,2618.2,1.22908663]
[1646945688613,0.32852347,2618.4,2618.2,1.22908663]
[1646945688810,0.51591315,2618.1,2617.7,0.1908]
[1646945689011,0.51591315,2618.1,2617.8,1.22909218]
[1646945689816,0.32860004,2618.0,2617.8,1.22909218]
[1646945690015,0.32860004,2618.0,2617.6,1.17878673]
[1646945690221,0.32860004,2618.0,2617.8,0.00440224]
[1646945690419,0.32860004,2618.0,2617.9,0.02154475]
[1646945693160,0.32860004,2618.0,2617.9,1.25034469]
[1646945693366,0.32860004,2618.0,2617.9,0.02154475]
[1646945694966,0.32860004,2618.0,2617.9,0.02044421]
[1646945696414,0.32839449,2618.0,2617.9,0.02044421]
[1646945697412,0.32839449,2618.0,2617.9,1.24927684]
[1646945698014,0.32707141,2618.0,2617.9,1.24927684]
[1646945700064,0.32707141,2618.0,2617.9,1.28750056]
[1646945701266,0.32707141,2618.0,2617.9,0.05866793]
[1646945703266,0.32707141,2618.0,2617.9,0.02044421]
[1646945703516,0.32707141,2618.0,2617.8,0.00440287]
[1646945703914,0.06729876,2617.9,2617.8,0.00440287]
[1646945704517,0.06729876,2617.9,2617.0,2.5454]
[1646945704716,1.13357518,2617.6,2617.0,2.5454]
[1646945704915,0.05662409,2617.5,2617.0,0.1908]
[1646945705519,0.05595229,2617.9,2617.0,0.1908]
[1646945706418,0.94714768,2617.8,2617.0,0.1908]
[1646945706625,1.07823649,2617.4,2617.0,0.1908]
[1646945706923,1.07823649,2617.4,2616.5,1.57246398]
[1646945706924,3.55753522,2617.3,2616.5,1.57246398]
[1646945707181,3.55753522,2617.3,2616.3,2.61605489]
[1646945707182,0.05753522,2617.3,2616.3,1.9116216]
[1646945707365,0.1681,2617.2,2616.3,1.9116216]
[1646945707663,0.1681,2617.2,2616.5,0.92664872]
[1646945707865,0.1681,2617.2,2616.9,1.19261345]
[1646945708166,0.35753522,2617.3,2616.9,1.19261345]
[1646945708366,0.05753522,2617.3,2616.9,1.19261345]
[1646945708565,0.06459496,2617.6,2616.9,1.19261345]
[1646945708764,0.06472281,2617.8,2616.9,1.19261345]
[1646945708964,3.5,2617.8,2617.4,1.14559262]
[1646945709165,0.06102368,2617.7,2616.7,1.1513]
[1646945709366,0.06102368,2617.7,2616.7,1.5344]
[1646945709578,0.1681,2617.9,2617.2,0.0047068]
[1646945709772,0.22878049,2617.9,2617.2,0.0047068]
[1646945709972,0.06068049,2617.9,2617.2,0.0047068]
[1646945710178,0.06068049,2617.9,2617.2,0.04999595]
[1646945710179,0.10449108,2617.9,2617.2,0.04999595]
[1646945710373,0.10449108,2617.9,2617.2,0.04528915]
[1646945710574,0.10449108,2617.9,2617.4,0.00470663]
[1646945710775,0.10449108,2617.9,2617.6,0.90003139]
[1646945711823,0.10449108,2617.9,2617.6,0.90473784]
[1646945712523,0.04381059,2617.9,2617.6,0.90473784]
[1646945712723,0.04381059,2617.9,2617.6,0.97434017]
[1646945712922,0.04381059,2617.9,2617.6,1.35744017]
[1646945713124,1.70510675,2618.8,2617.6,1.35744017]
[1646945713125,0.0676875,2618.6,2617.7,4.22705471]
[1646945713325,0.0667275,2618.6,2617.9,0.3831]
[1646945713529,0.0667275,2618.6,2618.1,1.91035]
[1646945713728,0.0667275,2618.6,2618.2,3.5]
[1646945713928,0.0667275,2618.6,2618.3,0.952542]
[1646945714328,0.773352,2619.0,2618.7,1.19842884]
[1646945714529,0.06824525,2619.0,2618.7,1.19842884]
[1646945715570,0.773352,2619.0,2618.7,1.19842884]
[1646945715770,0.06223374,2618.9,2618.7,2.20792884]
[1646945716070,0.00456366,2619.1,2618.7,2.20792884]
[1646945716071,0.06910751,2619.1,2618.7,2.20792884]
[1646945716270,0.00456366,2619.1,2618.7,5.70792884]
[1646945716471,0.0722284,2619.3,2618.7,5.70792884]
[1646945716671,0.00438251,2619.1,2618.7,5.70792884]
[1646945716869,0.00438251,2619.1,2618.8,0.463]
[1646945717069,0.00438251,2619.1,2618.9,3.5]
[1646945717272,0.00438251,2619.1,2618.9,3.963]
[1646945717471,0.00438251,2619.1,2618.9,0.463]
[1646945717671,0.0109152,2619.3,2619.0,3.5]
[1646945717870,0.0043827,2619.1,2619.0,3.5]
[1646945718171,0.31099725,2619.1,2619.0,4.45487]
[1646945718414,0.0109152,2619.3,2619.0,6.8275265]
[1646945718614,0.96455649,2619.7,2619.1,0.44663784]
[1646945718615,0.09134974,2619.7,2619.1,0.44663784]
[1646945718812,0.79052523,2619.9,2619.3,0.3831]
[1646945718813,0.06789146,2619.9,2619.3,0.3831]
[1646945719020,0.07028506,2619.9,2619.4,4.42164191]
[1646945719213,0.07028506,2619.9,2619.5,0.06954238]
[1646945719415,0.07028506,2619.9,2619.6,1.49300126]
[1646945719617,0.07028506,2619.9,2619.7,3.5752863]
[1646945719820,0.07028506,2619.9,2619.8,0.463]
[1646945720017,0.07028506,2619.9,2619.8,1.58839149]
[1646945720318,0.07028506,2619.9,2619.8,5.08839149]
[1646945720319,0.00439429,2619.9,2619.8,5.08839149]
[1646945720517,0.00439429,2619.9,2619.8,5.47149149]
[1646945720717,0.00439429,2619.9,2619.8,6.47149149]
[1646945721317,0.0047872,2620.0,2619.8,18.17149149]
[1646945721518,0.00439425,2620.0,2619.9,3.96572869]
[1646945721721,0.03311746,2620.2,2620.0,0.45991229]
[1646945721918,0.03311746,2620.2,2620.1,4.3461]
[1646945722864,0.03311746,2620.2,2620.1,5.30047]
[1646945723065,0.010042,2620.4,2620.1,6.2548534]
[1646945723266,0.010042,2620.4,2620.3,0.07946584]
[1646945723465,0.010042,2620.4,2620.3,4.04246584]
[1646945724471,0.01747532,2620.7,2620.3,4.99683584]
[1646945724772,0.03217876,2620.7,2620.5,0.07985055]
[1646945724973,0.03217876,2620.7,2620.6,0.463]
[1646945725171,0.03217876,2620.7,2620.6,3.963]
[1646945725570,1.35787535,2621.0,2620.7,5.5]
[1646945725773,1.35787535,2621.0,2620.9,0.08192606]
[1646945725774,0.07108748,2621.0,2620.9,0.08192606]
[1646945726028,3.87711178,2621.7,2621.1,13.5]
[1646945726232,0.0523657,2622.1,2621.1,13.5]
[1646945726233,0.02021084,2622.1,2621.3,22.08346434]
[1646945726431,0.02021084,2622.1,2621.4,3.57859043]
[1646945726432,0.0232796,2622.1,2621.4,3.57859043]
[1646945726627,0.0232796,2622.1,2621.6,0.95378]
[1646945726628,0.0223196,2622.1,2621.6,0.95378]
[1646945726830,0.1088555,2622.3,2621.8,0.9537868]
[1646945727027,0.1088555,2622.3,2621.9,0.463]
[1646945727638,0.1088555,2622.3,2621.9,3.963]
[1646945728033,0.1088555,2622.3,2621.9,4.2778405]
[1646945729133,0.1088555,2622.3,2621.9,2.60154891]
[1646945729532,0.1088555,2622.3,2622.0,0.95367]
[1646945729766,0.1088555,2622.3,2622.1,0.463]
[1646945730173,0.1078555,2622.3,2622.1,0.463]
[1646945730567,0.1078555,2622.3,2622.1,1.4166975]
[1646945730767,0.1078555,2622.3,2622.1,1.48760153]
[1646945731267,0.1125721,2622.3,2622.1,1.48760153]
[1646945732070,0.1078555,2622.3,2622.1,2.44128153]
[1646945732471,0.1125721,2622.3,2622.1,2.44128153]
[1646945732674,0.1125721,2622.3,2622.1,5.94128153]
[1646945732971,0.1125721,2622.3,2622.1,2.44128153]
[1646945733279,0.1078555,2622.3,2622.1,2.44128153]
[1646945734423,0.0348574,2622.4,2622.2,19.0]
[1646945734623,0.00843504,2622.3,2622.2,2.93503763]
[1646945734820,0.00843504,2622.3,2622.2,6.94668623]
[1646945735019,0.00843504,2622.3,2622.2,7.13718623]
[1646945735820,0.00843504,2622.3,2622.2,3.63718623]
[1646945736024,0.00843504,2622.3,2622.2,2.6092486]
[1646945737669,0.00843504,2622.3,2622.2,2.4187486]
[1646945738072,0.00843504,2622.3,2622.2,0.5116486]
[1646945738472,0.00843504,2622.3,2622.2,0.0486486]
[1646945739471,0.00843504,2622.3,2622.2,0.0327345]
[1646945744125,1.04437212,2622.3,2622.2,0.0327345]
[1646945744325,1.04437212,2622.3,2622.2,0.01685385]
[1646945744781,13.04437212,2622.3,2622.2,0.01685385]
[1646945745877,11.7,2622.1,2621.0,3.5]
[1646945746079,11.7,2622.1,2620.7,1.24030735]
[1646945746080,11.7,2622.0,2620.7,1.24030735]
[1646945746278,12.7,2622.0,2620.7,0.00440735]
[1646945746479,13.70939504,2622.0,2620.6,1.2056]
[1646945746680,13.70939504,2622.0,2620.7,0.00440651]
[1646945746877,1.1787233,2621.2,2620.7,0.00440651]
[1646945747578,1.1787233,2621.2,2620.6,0.1907]
[1646945747980,0.00440464,2621.1,2620.7,0.00440537]
[1646945748614,11.7,2621.6,2621.4,0.68379536]
[1646945749015,1.00151806,2621.5,2621.4,0.68379536]
[1646945749216,1.00151806,2621.5,2621.4,0.44921579]
[1646945749924,13.65598806,2621.5,2621.4,0.44921579]
[1646945750322,1.00151806,2621.5,2621.4,0.44921579]
[1646945751924,1.00151806,2621.5,2621.2,0.01709619]
[1646945752866,1.00623428,2621.5,2621.2,0.01709619]
[1646945753769,1.00151806,2621.5,2621.2,0.01709619]
[1646945753968,1.00623428,2621.5,2621.2,0.01709619]
[1646945754269,0.05871771,2621.4,2621.2,0.01709619]
[1646945754874,11.7,2621.4,2621.3,0.01932792]
[1646945755271,11.70471626,2621.4,2621.3,0.01932792]
[1646945755572,12.65922626,2621.4,2621.3,0.01932792]
[1646945756113,12.65451,2621.4,2621.3,0.01932792]
[1646945760075,12.65451,2621.4,2621.3,0.05972235]
[1646945760273,11.7,2621.4,2621.3,0.05972235]
[1646945760675,16.45753616,2621.4,2621.3,0.05972235]
[1646945760875,17.45753616,2621.4,2621.3,0.05972235]
[1646945761274,16.45753616,2621.4,2621.3,0.05972235]
[1646945762875,12.95753616,2621.4,2621.3,0.05972235]
[1646945763728,16.45753616,2621.4,2621.3,0.05972235]
[1646945765925,11.95753616,2621.4,2621.3,0.05972235]
[1646945766125,0.25753616,2621.4,2621.3,0.05972235]
[1646945766526,0.25753616,2621.4,2621.3,0.94182235]
[1646945767570,11.95753616,2621.4,2621.3,0.94182235]
[1646945767776,11.95753616,2621.4,2621.3,0.05972235]
[1646945769076,0.25753616,2621.4,2621.3,0.05972235]
[1646945769276,0.25753616,2621.4,2621.3,0.03988868]
[1646945769677,15.45753616,2621.4,2621.3,0.03988868]
[1646945770278,11.7,2621.2,2620.9,0.00411011]
[1646945770480,12.63613485,2621.0,2620.6,0.1907]
[1646945770676,0.25753616,2620.9,2620.6,0.1907]
[1646945771922,0.25753616,2620.9,2620.6,0.19480998]
[1646945772920,0.25753616,2620.9,2620.6,0.1907]
[1646945773122,0.25753616,2620.9,2620.6,0.19480998]
[1646945774127,0.25753616,2620.9,2620.6,0.1907]
[1646945774321,0.25753616,2620.9,2620.6,0.19481]
[1646945775277,0.25753616,2620.9,2620.6,0.1907]
[1646945775478,0.25753616,2620.9,2620.6,0.19481002]
[1646945776479,0.25753616,2620.9,2620.6,0.1907]
[1646945776681,0.25753616,2620.9,2620.6,0.19481002]
[1646945777079,0.06121214,2621.2,2620.6,1.14922272]
[1646945777278,0.25856618,2621.1,2620.6,1.14922272]
[1646945777780,0.92458281,2621.3,2620.6,1.1451127]
[1646945777978,0.26070124,2621.2,2620.6,1.1451127]
[1646945778920,0.25856989,2621.2,2620.6,1.1451127]
[1646945779122,0.25856989,2621.2,2620.7,1.28927644]
[1646945779327,1.1165988,2620.9,2620.4,0.08389392]
[1646945779725,0.25874526,2620.8,2620.0,0.08557479]
[1646945779926,0.25874526,2620.8,2620.1,1.29011772]
[1646945780126,0.25874526,2620.8,2620.2,0.08567996]
[1646945780328,15.45874526,2620.8,2619.7,2.90174925]
[1646945780529,11.7,2620.6,2619.8,1.29045968]
[1646945780727,11.95874526,2620.5,2619.8,1.29045968]
[1646945780926,1.22156155,2620.0,2619.8,1.29045968]
[1646945781527,11.7,2620.5,2619.8,1.29274819]
[1646945781726,0.25904357,2620.4,2619.8,1.29274819]
[1646945781930,0.25904357,2620.3,2619.8,1.29274819]
[1646945782178,15.2,2620.6,2619.8,1.29274819]
[1646945782368,0.258989,2620.5,2619.8,1.29274819]
[1646945782568,0.258989,2620.5,2619.8,1.29045968]
[1646945782770,1.03715989,2620.4,2620.1,0.00471973]
[1646945782970,0.259148,2620.3,2620.1,0.00471973]
[1646945783170,1.03715989,2620.4,2620.1,0.00471973]
[1646945783571,0.25917545,2620.3,2620.1,0.00471973]
[1646945783770,0.25917545,2620.3,2619.7,0.07414925]
[1646945783974,0.25917545,2620.3,2620.1,0.00471969]
[1646945784875,0.25917545,2620.3,2619.7,0.07414925]
[1646945785076,0.25917545,2620.3,2619.8,1.29244099]
[1646945785376,0.25917545,2620.3,2620.1,0.00471973]
[1646945785579,1.03715989,2620.4,2620.2,1.29244099]
[1646945786023,0.05379018,2620.7,2620.2,1.29244099]
[1646945786227,0.25933892,2620.6,2620.2,1.29244099]
[1646945786426,0.25933892,2620.6,2620.3,1.29244099]
[1646945787628,0.25933892,2620.6,2620.3,0.00456024]
[1646945788429,0.95001918,2620.5,2620.3,0.00456024]
[1646945788630,0.25933892,2620.4,2619.8,0.9546805]
[1646945788830,0.25933892,2620.4,2620.3,0.00456024]
[1646945789230,0.25933892,2620.4,2620.3,1.29864689]
[1646945789681,0.25933892,2620.4,2620.3,1.29408665]
[1646945789682,0.25972564,2620.4,2620.3,1.29408665]
[1646945790075,3.75972564,2620.8,2620.2,0.00439724]
[1646945790275,0.25972564,2620.7,2620.3,1.29408665]
[1646945790475,0.25972564,2620.8,2620.2,0.00439724]
[1646945790677,0.25972564,2620.8,2620.3,1.29408665]
[1646945790876,0.25972564,2620.8,2620.4,1.29408665]
[1646945791077,0.25972564,2620.8,2620.5,1.29408665]
[1646945791276,0.42953883,2620.4,2620.0,0.0779621]
[1646945791476,0.25972564,2620.3,2620.1,1.29480423]
[1646945793623,0.25972564,2620.3,2620.1,1.29952396]
[1646945793823,0.25972564,2620.3,2620.2,1.29480423]
[1646945795931,0.25972564,2620.3,2620.1,1.29952392]
[1646945796531,0.42953883,2620.4,2620.1,1.29952392]
[1646945796532,0.42953883,2620.4,2620.2,0.08227766]
[1646945796732,0.42953883,2620.4,2620.3,1.29480423]
[1646945797195,0.68935032,2620.4,2620.3,1.29480423]
[1646945799884,0.68935032,2620.4,2620.2,0.00456032]
[1646945800087,0.42953883,2620.4,2620.3,1.29480423]
[1646945800385,0.68951089,2620.4,2620.2,0.00456032]
[1646945800585,0.42953883,2620.4,2620.3,1.29480423]
[1646945800923,0.68953899,2620.4,2620.3,1.29480423]
[1646945801120,0.68953899,2620.4,2620.2,0.00456032]
[1646945801321,0.42953883,2620.4,2620.3,1.29480423]
[1646945801521,0.68956917,2620.4,2620.2,0.00456032]
[1646945801720,0.42953883,2620.4,2620.3,1.29480423]
[1646945801921,0.68958269,2620.4,2620.0,1.29480423]
[1646945802126,0.26004386,2620.3,2620.2,0.00456569]
[1646945802326,0.26004386,2620.3,2620.2,1.29936992]
[1646945802525,0.26004386,2620.3,2620.2,0.00456569]
[1646945802730,0.26004386,2620.3,2620.2,1.29936992]
[1646945802925,0.26004386,2620.3,2620.0,1.29480423]
[1646945803326,0.26004386,2620.3,2620.1,0.00456577]
[1646945803525,0.26004386,2620.3,2620.2,1.29480423]
[1646945803925,0.26004386,2620.3,2620.1,1.29937]
[1646945804126,0.26004386,2620.3,2620.2,1.29480423]
[1646945804686,0.26004386,2620.3,2620.1,1.29937]
[1646945804880,0.26004386,2620.3,2620.2,1.29480423]
[1646945805285,0.26004386,2620.3,2620.1,1.29937]
[1646945805482,0.26004386,2620.3,2620.2,1.29480423]
[1646945806383,0.26004386,2620.3,2620.1,1.29920122]
[1646945806581,0.26004386,2620.3,2620.1,1.29480423]
[1646945806782,0.26004386,2620.3,2620.1,1.29920122]
[1646945807784,0.26004386,2620.3,2620.1,1.29480423]
[1646945807982,0.26004386,2620.3,2620.1,1.29920126]
[1646945808829,1.0,2621.2,2620.2,29.0]
[1646945809032,0.00096,2620.9,2620.7,0.01205315]
[1646945809231,0.00096,2621.3,2620.9,29.8831]
[1646945809429,0.72291627,2621.7,2621.1,0.45932238]
[1646945809430,0.00096,2621.5,2621.1,0.45932238]
[1646945809629,0.01762237,2621.7,2621.3,1.33708]
[1646945809829,0.01762237,2621.7,2621.5,0.08668089]
[1646945810031,0.01762237,2621.7,2621.6,0.08015705]
[1646945810231,0.00843504,2622.0,2621.6,1.03409975]
[1646945810435,0.00843504,2622.0,2621.8,0.07315975]
[1646945811331,0.01836494,2621.6,2621.5,4.0657153]
[1646945814398,0.01836494,2621.6,2621.5,3.8157153]
[1646945814599,0.01836494,2621.6,2621.5,1.90783]
[1646945815800,0.01836494,2621.6,2621.4,1.908105]
[1646945816632,0.02079253,2621.6,2621.4,1.908105]
[1646945817432,0.01836494,2621.6,2621.4,1.908105]
[1646945817634,0.02308521,2621.6,2621.4,1.908105]
[1646945818634,0.01836494,2621.6,2621.4,1.908105]
[1646945818833,0.02308521,2621.6,2621.4,1.908105]
[1646945819333,0.09611145,2621.6,2621.4,1.908105]
[1646945819780,0.09139118,2621.6,2621.4,1.908105]
[1646945820181,0.09611145,2621.6,2621.4,1.60702783]
[1646945820983,0.09139118,2621.6,2621.4,1.60702783]
[1646945821383,0.09611145,2621.6,2621.4,1.60702783]
[1646945822083,0.09611145,2621.6,2621.2,0.08791048]
[1646945822284,0.09611145,2621.6,2621.0,1.1634]
[1646945822285,0.09139118,2621.6,2621.0,1.1634]
[1646945822483,0.09595569,2621.6,2621.0,1.1634]
[1646945822683,0.09595569,2621.6,2620.9,0.0045658]
[1646945822887,0.15015274,2621.6,2620.9,0.0045658]
[1646945823086,12.83275071,2621.5,2620.9,0.0045658]
[1646945823539,0.9100388,2621.0,2620.6,2.16838452]
[1646945823732,0.9100388,2621.0,2620.9,0.00456552]
[1646945823934,0.00456475,2621.3,2620.9,0.00456552]
[1646945824733,11.7,2621.5,2620.8,0.25]
[1646945824734,11.77284726,2621.5,2620.8,0.25]
[1646945824935,0.00456483,2621.2,2620.9,0.00456543]
[1646945825938,0.07284726,2621.5,2620.8,0.25]
[1646945826136,0.00439781,2621.2,2620.9,0.95863839]
[1646945826336,0.00439781,2621.2,2620.9,1.91293509]
[1646945827171,0.07284726,2621.5,2620.9,1.9085367]
[1646945827375,0.07284726,2621.5,2620.9,1.91293509]
[1646945827376,0.00439781,2621.2,2620.9,1.91293509]
[1646945827772,0.00439781,2621.2,2620.9,0.00439839]
[1646945828179,0.92901649,2621.4,2620.8,0.25]
[1646945828381,0.07284726,2621.5,2620.8,0.25]
[1646945828583,0.00439781,2621.2,2620.9,0.00439839]
[1646945829386,0.07284726,2621.5,2620.8,1.2043254]